Workbook

Sheet Overall
A1: 2013-14 Champa Mahila Society Overall Budget
A3: Subproject | B3: 2013-14 Request | C3: 2012-13 Funding | D3: %Increase
A4: Sarada Balika Bidyamandir (SBB) | B4: 832204 | C4: =[1]SBB!E21 -> 860104
A5: Surendra Smriti Bidyaniketan (SSB) | B5: 1094520 | C5: =[1]SSB!E21 -> 1088020
A6: Champabati Seva Sadan (Health) | B6: 177410 | C6: =[1]Health!E16 -> 190700
A7: Early Childhood/Non-Formal Education Centers (ECE/NFE) | B7: 1082250 | C7: =[1]ECE!E25 -> 1082150
A8: Boys' and Girls' Home | B8: 419350 | C8: ='[1]Boys and Girls Home'!E56 -> 416960
A9: Special Children | B9: 230300 | C9: ='[1]Special Children'!F20 -> 196000
A10: Total | B10: =SUM(B4:B9) -> 3836034 | C10: =SUM(C4:C9) -> 3833934 | D10: =((B10-C10)/C10)*100 -> 0.05477402584

Sheet SBB
A1: SBB Budget 2013-2014
A3: Item | B3: # of Unit | C3: Amount / Unit (Rs) | D3: Time (month) | E3: Total Amount
A4: Head Teacher'sSalary | B4: 1 | C4: 1700 | D4: 12 | E4: =B4*C4*D4 -> 20400
A5: Teacher salary | B5: 9 | C5: 1600 | D5: 12 | E5: =B5*C5*D5 -> 172800
A6: Staff salary | B6: 1 | C6: 1100 | D6: 12 | E6: =B6*C6*D6 -> 13200
A7: Cook | B7: 2 | C7: 800 | D7: 12 | E7: =B7*C7*D7 -> 19200
A8: TLM | B8: 10 | C8: 25 | D8: 12 | E8: =B8*C8*D8 -> 3000
A9: Education material | B9: 200 | C9: 280 | E9: =B9*C9 -> 56000
A10: Dress | B10: 200 | C10: 220 | E10: =B10*C10 -> 44000
A11: Meal | B11: 213 | C11: =8*276/12 -> 184 | D11: 12 | E11: =B11*C11*D11 -> 470304
A12: Medicine | C12: 300 | D12: 12 | E12: =C12*D12 -> 3600
A13: Sanitation | C13: 3000 | E13: =C13 -> 3000
A14: Sports, Annual program | C14: 6000 | E14: =C14 -> 6000
A15: Teacher's Orientation Training | C15: 3500 | E15: =C15 -> 3500
A16: Documentary, Office Expence Printing Stationary | C16: 4500 | E16: =C16 -> 4500
A17: News Paper | C17: 1500 | E17: =C17 -> 1500
A18: Social awareness & observation days | C18: 5000 | E18: 5000
A19: Repair & Maintainance for School Building | C19: 19200 | E19: 19200
A20: Creative Activities | C20: 7500 | E20: 7500
A21: Local contibution Rs. 2 per child per month & guardians' contibution | E21: 20500
A22: Total | E22: =SUM(E4:E20) - E21 -> 832204
A24: 2012-13 Amount from Asha | E24: 860104

Sheet SSB
A1: SSB Budget 2013-2014
A3: Item | B3: # of Unit | C3: Amount / Unit (Rs) | D3: Time (month) | E3: Total Amount | F3: comments
A4: Head Teacher'sSalary | B4: 1 | C4: 1700 | D4: 12 | E4: =B4*C4*D4 -> 20400
A5: Teacher salary | B5: 10 | C5: 1600 | D5: 12 | E5: =B5*C5*D5 -> 192000
A6: Staff salary | B6: 1 | C6: 1100 | D6: 12 | E6: =B6*C6*D6 -> 13200
A7: Cook | B7: 3 | C7: 800 | D7: 12 | E7: =B7*C7*D7 -> 28800
A8: TLM | B8: 11 | C8: 25 | D8: 12 | E8: =B8*C8*D8 -> 3300
A9: Education material | B9: 300 | C9: 225 | E9: =B9*C9 -> 67500
A10: Dress | B10: 300 | C10: 200 | E10: =B10*C10 -> 60000
A11: Meal | B11: 315 | C11: =8*276/12 -> 184 | D11: 12 | E11: =B11*C11*D11 -> 695520
A12: Medicine | C12: 300 | D12: 12 | E12: =C12*D12 -> 3600
A13: Sanitation | C13: 3000 | E13: =C13 -> 3000
A14: Sports, Annual program | C14: 6000 | E14: =C14 -> 6000
A15: Teacher's Orientation Training | C15: 3500 | E15: =C15 -> 3500
A16: Documentary, Office Expence Printing Stationary | C16: 3200 | E16: 3200
A17: News Paper | C17: 1500 | E17: 1500
A18: Social awareness & observation days | C18: 5000 | E18: 5000
A19: Repair & Maintainance for School Building | C19: 8000 | E19: 8000
A20: Creative Activities | C20: 7500 | E20: 7500
A21: Local contibution Rs. 2 per child per month & guardians' contibution | E21: 27500
A22: Total | E22: =SUM(E4:E20)-E21 -> 1094520
A24: 2012-13 Amount from Asha | E24: 1088020

Sheet Boys and Girls Home
A1: Boys' Home & Girls' Home Budget 2013 -2014
B2: Item | C2: # of Unit (Girls') | D2: # of Unit (Boys') | E2: Per Month Rs. | F2: Amount / Unit (RS | G2: Total Amount
A3: 1 | B3: Supervisor | C3: 1 | D3: 1 | E3: 3000 | F3: 3000 | G3: =F3 *12 -> 36000
A4: 2 | B4: House Mother | C4: 1 | E4: 1200 | F4: 1200 | G4: =F4 * 12 -> 14400
A5: 3 | B5: Cook | C5: 4 | D5: 5 | E5: 1000 | F5: =(C5+D5)*E5 -> 9000 | G5: =F5*12 -> 108000
B6: Tutor
A7: 4 | B7: full time | C7: 2 | D7: 2 | E7: 1200 | F7: =(C7+D7)*E7 -> 4800 | G7: =F7*12 -> 57600
A8: 5 | B8: part time | C8: 2 | D8: 2 | E8: 800 | F8: 3200 | G8: 38400
A9: 6 | B9: part time | C9: 5 | D9: 5 | E9: 600 | F9: 6000 | G9: 72000
A10: 7 | B10: Cultural trainer (BH+GH) | D10: 1 | E10: 1000 | F10: 1000 | G10: 12000
A11: 8 | B11: D.V.D. Player for dance | G11: 5200
B12: Total Salary | G12: =SUM(G3:G11) -> 343600
B13: B
A14: 1 | B14: Food for children | C14: 190 | D14: 170 | F14: 35 | G14: =35*365*(C14+D14) -> 4599000 | H14: Rs.35*365 *360
A15: 2 | B15: Food for staff | C15: 8 | D15: 8 | F15: 35 | G15: =(C15+D15)*35*365 -> 204400 | H15: Rs.35*365 *16
A16: 3 | B16: Clothing | F16: 400 | G16: =F16 *12*30 -> 144000 | H16: [colG]*30 | I16: 30 units?
A17: 4 | B17: Medicines | F17: 200 | G17: =F17 *12*30 -> 72000 | H17: [colG]*30
A18: 5 | B18: Toiletries | F18: 125 | G18: 45000 | H18: [colG]*30
A19: 6 | B19: Bedding | F19: 200 | G19: 72000 | H19: [colG]*30
A20: 7 | B20: Building Maintenance | G20: 38000
B21: Total | G21: =SUM(G14:G20) -> 5174400
B22: C
A23: 1 | B23: Sports | G23: 8000
A24: 2 | B24: Sports equipment | G24: 5000
A25: *3 | B25: Cultural Function | G25: 8400
A26: *4 | B26: Awareness Progamme | G26: 6200
A27: 5 | B27: Office Stationary, Printing Paper | G27: 5000
A28: 6 | B28: Travelling | G28: 4000
A29: *7 | B29: Creative activities | G29: 6000
A30: 8 | B30: Audit Expense | G30: 8000
B31: Total | G31: =SUM(G23:G30) -> 50600
B32: Total A+B+C | G32: =SUM(G12,G21,G31) -> 5568600
A35: 1 | B35: Govt funding including building maintenance | C35: 190 | D35: 170 | E35: 1150 | G35: =(C35+D35)*E35*12 -> 4968000
A36: 2 | B36: Vegetable garden, fish, rice | G36: 76250
A37: 3 | B37: Other sources | G37: 105000
B38: Total | G38: =SUM(G35:G37) -> 5149250
B39: Asking from Asha (5568600.00-5149250.00) | G39: =G32-G38 -> 419350

Sheet Special Children
A1: Budget for 18 Special Children (All Residential) 2013-2014
A2: 12boys 7 girls
A3: Items | B3: Unit/No.s | C3: Expense per unit | D3: Expense per month | E3: Expense per year
A4: Supervisor cum teacher | B4: 1 | C4: 1000 | D4: 1000 | E4: =D4*12 -> 12000
A5: Cook salary with home | B5: 1 | C5: 0 | D5: =C5*B5 -> 0 | E5: =D5*12 -> 0
A6: Food | B6: 19 | C6: 800 | D6: =C6*B6 -> 15200 | E6: =D6*12 -> 182400
A7: Education | B7: 19 | C7: 300 | E7: =B7*C7 -> 5700
A8: Clothing | B8: =B6 -> 19 | C8: 500 | E8: =B8*C8 -> 9500
A9: Toiletries | B9: =B7 -> 19 | C9: 100 | E9: =B9*C9 -> 1900
A10: Bedding | B10: =B9 -> 19 | C10: 200 | E10: =B10*C10 -> 3800
A11: Sports program | E11: 1500
A12: Creative activities | E12: 1500
A13: Computer teacher's salary | B13: 1 | D13: 1000 | E13: =D13*12 -> 12000
A15: Asking from Asha | E15: =SUM(E4:E14) -> 230300
A17: 2012-13 Amount | E17: 196000

Sheet Health
C1: CHAMPABATI SEVA SADAN
C2: Health Budget 2013-2014
B3: A. Hospital | C3: Unit | D3: Rate/Unit | E3: per month | F3: per year
A4: 1 | B4: Doctor | C4: 1 | D4: 9000 | E4: 9000 | F4: 108000
A5: 2 | B5: Nurse Full Time | C5: 2 | D5: 1400 | E5: 2800 | F5: 33600
A6: 3 | B6: Nurse Part Time | C6: 1 | D6: 600 | E6: 600 | F6: 7200
A7: 4 | B7: Aya | C7: 2 | D7: 800 | E7: 1600 | F7: 19200
A8: 5 | B8: Superintendent | C8: 1 | D8: 1500 | E8: 1500 | F8: 18000
A9: 6 | B9: Medicine | D9: 6500 | E9: 6500 | F9: 78000
A10: 7 | B10: Travelling (staff) | D10: 300 | E10: 300 | F10: 3600
A11: 8 | B11: Travelling (doctor) | D11: 1000 | E11: 1000 | F11: 12000
A12: 9 | B12: Office& Printing Expense | E12: 300 | F12: 3600
A13: 10 | B13: Instrument | F13: 9500
A14: 11 | B14: Training on Health, Hygiene, Nutrition for health workers , SBB, SSB & NFE Teacher thrice in a year @ Rs.50/- for 80 heads, Resource person & other expenses. | F14: 14200
B15: Total | F15: 306900
B16: Income from hospital
A17: 1 | B17: Patient Fees | F17: 69420
A18: 2 | B18: Operation Charge | F18: 33070
A19: 3 | B19: Ambulance Service | F19: 27000
B20: Total | F20: 129490
B21: Asking from Asha | C21: (306900.00-129490.00) | F21: 177410

Sheet NFE
B3: ECE Budget 2013 -2014
A6: Item | B6: # of Unit | C6: Amount / Unit (RS | D6: Time (month) | E6: Total Amount
A7: Teacher Salary | B7: 50 | C7: 400 | D7: 12 | E7: 240000
A8: Project Leader cum Supervisor | B8: 1 | C8: 700 | D8: 12 | E8: 8400
A9: Supervisor | B9: 3 | C9: 600 | D9: 12 | E9: 21600
A10: Food 25 X 3 X 50 X 192 days | B10: 1250 | C10: 3 | D10: 192 | E10: 720000
A11: Travelling | C11: 4000 | E11: 4000
A12: Medicine | B12: 50 | C12: 40 | D12: 12 | E12: 24000
A13: Education material | B13: 1250 | C13: 65 | E13: 81250
A14: Contingency | C14: 10000 | E14: 10000
A15: Office Expense, Documentation & Stationary | C15: 3350 | E15: 3350
A16: Cluster wise Sports for N.F.E. Students | B16: 50 | C16: 375 | E16: 18750
A17: Training of N.F. E Teachers with T . L.M 56 Heads X 2 days X @ Rs. 60 Per day for Meal & Tiffin. Twice in a year & cost of and Resource person material Rs. 8550/- Training | B17: 56 | C17: 15150 | E17: 15150
A18: Creative activities (doll making, drawing, paper cutting, nature observation) | B18: 50 | C18: 320 | E18: 16000
A19: Total center | E19: 1162500
A20: Collection from children | B20: 1250 | C20: 2 | D20: 12 | E20: 30000
A21: Salary by CMS | C21: 3000 | D21: 12 | E21: 36000
A22: Local contribution | E22: 14250
A23: Total | E23: 80250
A24: Asking from Asha | B24: (1162500.00-80250.00) | E24: 1082250
